bitfinex/quotes_ETHUSD_20251028
["timestamp","ask_amount","ask_price","bid_price","bid_amount"]
[1761684070150,0.505104,3988.4,3986.5,0.4479]
[1761684070346,0.405504,3988.0,3986.5,0.4479]
[1761684070594,1.960704,3987.6,3985.9,0.4479]
[1761684070766,2.446,3987.9,3985.3,0.6699]
[1761684070767,0.405504,3986.8,3985.3,0.6699]
[1761684070970,2.50864279,3986.3,3985.4,0.4479]
[1761684071148,0.405504,3986.7,3985.3,0.222]
[1761684071149,2.50882699,3986.0,3985.3,0.222]
[1761684071362,2.50871463,3986.2,3985.3,0.222]
[1761684071546,2.50873951,3986.1,3985.3,0.6699]
[1761684071952,0.1473,3986.5,3985.3,0.222]
[1761684072146,0.405504,3986.2,3984.7,0.4479]
[1761684072371,2.50893015,3985.8,3984.7,0.4479]
[1761684072594,2.50900359,3985.7,3984.7,0.4479]
[1761684072765,2.50884367,3985.9,3984.7,0.4479]
[1761684072961,0.405504,3986.0,3984.7,0.4479]
[1761684073167,2.5089771,3985.7,3984.7,0.4479]
[1761684073500,2.50891949,3985.8,3984.7,0.4479]
[1761684073791,0.405504,3986.0,3984.7,0.4479]
[1761684073954,0.1248,3984.9,3984.7,1.01702884]
[1761684074151,0.1248,3984.9,3984.8,2.95743623]
[1761684074351,0.405504,3986.7,3984.8,0.4479]
[1761684074589,2.50839425,3986.7,3984.9,0.47299473]
[1761684074765,2.50839425,3986.7,3984.9,0.4479]
[1761684074766,2.50878399,3986.0,3984.9,0.4479]
[1761684075065,2.5082144,3986.9,3984.9,0.4479]
[1761684075264,2.50834023,3986.7,3985.9,0.2326]
[1761684075473,2.22007,3986.7,3985.5,0.2326]
[1761684075798,2.22007,3986.7,3984.8,0.4479]
[1761684075799,0.405504,3986.3,3984.8,0.4479]
[1761684076101,2.50901659,3985.7,3984.8,0.4479]
[1761684076452,2.50871779,3986.1,3984.8,0.4479]
[1761684076652,0.405504,3986.1,3984.8,0.4479]
[1761684076852,1.5552,3985.9,3984.4,0.224]
[1761684077100,0.405504,3985.9,3984.4,0.224]
[1761684077265,2.50923743,3985.3,3984.4,0.224]
[1761684077592,2.50903251,3985.6,3984.5,0.4479]
[1761684077798,4.06417308,3985.7,3984.5,0.4479]
[1761684077956,1.960704,3986.1,3984.5,0.4479]
[1761684078158,0.405504,3985.3,3984.5,0.4479]
[1761684078396,0.405504,3985.8,3984.5,0.4479]
[1761684078936,2.5093239,3985.2,3984.5,0.4479]
[1761684079073,2.50955989,3984.8,3984.4,0.224]
[1761684079277,0.405504,3985.4,3984.4,0.224]
[1761684079477,2.5093847,3985.1,3984.4,0.224]
[1761684079788,0.405504,3985.4,3984.4,0.224]
[1761684080206,2.50928436,3985.2,3984.4,0.224]
[1761684080801,2.50922281,3985.3,3984.4,0.224]
[1761684081001,2.50930695,3985.2,3984.4,0.224]
[1761684081207,2.50923692,3985.3,3984.4,0.224]
[1761684081391,0.2443,3985.7,3984.4,0.224]
[1761684081594,2.851504,3985.9,3984.5,0.4479]
[1761684081799,1.5552,3985.5,3984.5,0.4479]
[1761684082115,1.5552,3985.8,3984.6,2.50961738]
[1761684082282,2.50890661,3985.8,3984.5,0.7857281]
[1761684082481,0.144,3986.2,3984.5,0.4479]
[1761684082482,2.50914061,3985.5,3984.5,0.4479]
[1761684082678,0.505804,3986.0,3984.4,0.224]
[1761684082890,1.5552,3985.9,3984.6,0.4479]
[1761684083120,2.50898582,3985.7,3984.6,0.4479]
[1761684083490,2.50884815,3985.9,3984.6,0.4479]
[1761684083696,2.509076,3985.6,3984.6,0.4479]
[1761684084019,1.5552,3986.1,3984.4,0.224]
[1761684084020,0.405504,3985.7,3984.4,0.224]
[1761684084217,0.405504,3985.8,3984.4,0.224]
[1761684084390,0.1248,3984.5,3984.4,0.6719]
[1761684085414,0.1248,3984.5,3984.4,0.224]
[1761684086315,0.1248,3984.5,3984.4,0.6719]
[1761684086527,1.6992,3986.2,3984.4,1.00994746]
[1761684086830,0.1248,3984.8,3984.5,0.4479]
[1761684087194,0.1248,3984.8,3984.7,2.50959921]
[1761684087600,0.1248,3984.8,3984.7,2.95749921]
[1761684088309,2.50833232,3986.8,3985.0,2.50940095]
[1761684088511,0.1248,3985.4,3985.1,0.25094009]
[1761684088831,0.1248,3985.4,3985.3,2.50922138]
[1761684089029,0.1248,3985.4,3985.2,2.50927207]
[1761684089203,0.1248,3985.4,3985.2,2.95717207]
[1761684089528,0.1248,3985.4,3985.3,0.4479]
[1761684089948,0.1248,3985.4,3985.0,2.446]
[1761684090196,0.1248,3985.1,3985.0,2.446]
[1761684090372,0.1248,3985.1,3984.9,1.5552]
[1761684090500,2.50901823,3985.7,3984.7,2.446]
[1761684090698,0.1248,3984.8,3984.7,2.446]
[1761684092151,0.1248,3984.8,3984.7,5.40349921]
[1761684092347,0.1248,3984.8,3984.7,2.95749921]
[1761684092647,0.1248,3984.8,3984.7,0.4479]
[1761684093307,0.1248,3984.8,3984.4,0.224]
[1761684093616,0.1248,3984.5,3984.4,0.224]
[1761684093813,2.50952529,3984.9,3984.4,0.002]
[1761684094142,1.960704,3985.7,3984.4,0.002]
[1761684094143,1.5552,3985.1,3984.4,0.002]
[1761684094339,0.405504,3985.4,3984.4,0.002]
[1761684094641,2.50941555,3985.0,3984.4,0.002]
[1761684095019,2.50945281,3985.0,3984.4,0.002]
[1761684096344,0.405504,3985.4,3984.4,0.002]
[1761684096548,0.099,3984.9,3984.4,0.002]
[1761684096854,2.50922138,3985.3,3984.4,0.002]
[1761684096855,2.50959921,3984.7,3984.4,0.002]
[1761684097151,4.47042918,3984.5,3984.4,0.002]
[1761684097558,4.56942918,3984.5,3984.4,0.002]
[1761684098127,19.08269477,3984.5,3984.4,0.002]
[1761684099359,21.14910577,3984.5,3984.4,0.002]
[1761684099746,20.82412677,3984.5,3984.4,0.002]
[1761684100052,21.59422177,3984.5,3984.4,0.002]
[1761684100367,21.65530277,3984.5,3984.0,0.002]
[1761684100539,7.61650115,3984.1,3984.0,0.002]
[1761684100739,9.09710115,3984.1,3984.0,0.002]
[1761684100939,18.01729715,3984.1,3984.0,0.002]
[1761684101139,7.01468115,3984.1,3984.0,0.002]
[1761684101470,16.66854115,3984.1,3984.0,0.002]
[1761684101656,16.40054115,3984.1,3984.0,0.002]
[1761684101963,12.33315715,3984.1,3984.0,0.002]
[1761684102661,9.44745615,3984.1,3984.0,0.002]
[1761684102864,9.56102115,3984.1,3984.0,0.002]
[1761684103069,7.01468115,3984.1,3984.0,0.002]
[1761684103531,9.03120915,3984.1,3984.0,0.002]
[1761684104127,4.56968115,3984.1,3984.0,0.002]
[1761684104371,6.51017715,3984.1,3984.0,0.002]
[1761684104667,9.77509015,3984.1,3984.0,0.002]
[1761684105044,10.18059415,3984.1,3984.0,0.002]
[1761684105229,7.01468115,3984.1,3984.0,0.002]
[1761684105430,4.56968115,3984.1,3984.0,0.002]
[1761684105654,14.90716715,3984.1,3984.0,0.002]
[1761684105969,7.01468115,3984.1,3984.0,0.002]
[1761684106263,19.09033915,3984.1,3984.0,0.002]
[1761684106469,7.01468115,3984.1,3984.0,0.002]
[1761684106676,14.77060215,3984.1,3984.0,0.002]
[1761684107232,14.56197515,3984.1,3984.0,0.002]
[1761684107537,12.88319615,3984.1,3984.0,0.002]
[1761684107841,12.88319615,3984.1,3983.6,0.002]
[1761684107842,10.82680518,3983.7,3983.6,0.002]
[1761684108043,18.98419877,3983.7,3983.6,0.002]
[1761684108246,21.78494677,3983.7,3983.6,0.002]
[1761684108767,32.14708277,3983.7,3983.6,0.002]
[1761684108937,32.43743977,3983.7,3983.6,0.002]
[1761684109467,27.25692677,3983.7,3983.6,0.002]
[1761684109963,29.23556077,3983.7,3983.6,0.002]
[1761684110357,26.85699477,3983.7,3983.6,0.002]
[1761684110936,28.58021477,3983.7,3983.6,0.002]
[1761684111858,39.77169577,3983.7,3983.6,0.002]
[1761684112050,38.30963477,3983.7,3983.6,0.002]
[1761684112447,2.51145417,3981.8,3981.6,0.02261931]
[1761684112759,2.51148643,3981.8,3981.6,0.02261931]
[1761684112962,0.405504,3982.6,3981.6,0.48751931]
[1761684113260,2.51115711,3982.3,3981.6,0.48751931]
[1761684113584,1.960704,3982.6,3981.7,0.4649]
[1761684113773,2.51087171,3982.7,3982.2,0.2374]
[1761684113945,2.50981818,3984.4,3982.2,0.2374]
[1761684114143,2.444,3983.7,3982.3,0.4649]
[1761684114663,1.5552,3983.2,3982.3,0.4649]
[1761684114978,0.0999,3984.2,3982.3,0.4649]
[1761684114979,0.2453,3984.9,3982.4,0.02511048]
[1761684115283,2.51022918,3983.7,3983.6,0.2374]
[1761684115658,0.1248,3983.6,3982.5,0.4649]
[1761684115859,0.405504,3983.4,3982.5,0.4649]
[1761684116079,0.405504,3983.8,3982.5,0.4649]
[1761684116284,0.405504,3983.4,3982.5,0.4649]
[1761684117086,2.51041651,3983.5,3983.3,0.2374]
[1761684117087,0.405504,3983.5,3983.3,0.2374]
[1761684117315,0.405504,3983.5,3982.2,2.7485641]
[1761684117316,0.405504,3983.2,3982.3,0.4649]
[1761684117598,2.51061623,3983.1,3982.3,0.4649]
[1761684117798,0.405504,3983.3,3982.3,0.4649]
[1761684117950,2.51091703,3982.7,3982.3,0.4649]
[1761684118147,0.405504,3983.5,3982.3,0.4649]
[1761684118603,2.51073395,3982.9,3982.3,0.4649]
[1761684118897,0.1483,3983.6,3982.3,0.4649]
[1761684118898,0.001,3983.6,3982.3,0.4649]
[1761684119054,2.51039938,3983.5,3982.3,2.97600431]
[1761684119254,0.001,3983.6,3982.4,0.32134043]
[1761684119501,1.5562,3983.6,3982.4,0.4649]
[1761684119794,2.51035521,3983.5,3982.4,0.4649]
[1761684120294,1.5562,3983.6,3983.4,0.2374]
[1761684120295,2.51129961,3983.6,3983.4,0.2374]
[1761684120678,2.51035521,3983.5,3983.4,0.2374]
[1761684120878,0.001,3983.6,3983.4,0.7023]
[1761684121303,0.001,3983.6,3983.5,0.4649]
[1761684122401,0.001,3983.6,3983.5,2.97525521]
[1761684122566,0.001,3983.6,3983.5,0.4649]
[1761684123604,0.001,3983.6,3983.4,0.2374]
[1761684123782,0.001,3983.6,3983.4,0.7023]
[1761684124182,0.001,3983.6,3983.5,0.4649]
[1761684124908,2.51035521,3983.5,3983.4,0.2374]
[1761684125094,2.51046361,3983.4,3981.5,0.2326]
[1761684125272,0.001,3983.6,3982.5,0.4649]
[1761684125467,2.51054271,3983.3,3982.5,0.4649]
[1761684125774,2.51055836,3983.2,3982.5,0.4649]
[1761684125971,0.001,3983.6,3982.5,0.4649]
[1761684126204,2.51060938,3983.1,3982.5,0.4649]
[1761684126588,0.001,3983.6,3982.5,0.4649]
[1761684127008,2.51053549,3983.3,3982.5,0.4649]
[1761684127378,0.1248,3982.6,3982.5,0.4649]
[1761684128623,0.1248,3982.6,3981.7,0.1248]
[1761684128624,2.51149006,3981.7,3981.6,0.02461931]
[1761684128823,4.06669006,3981.7,3981.6,0.02461931]
[1761684129142,4.57319406,3981.7,3981.6,0.02461931]
[1761684129502,4.47219406,3981.7,3981.6,0.02461931]
[1761684130131,1.5552,3981.7,3981.6,0.02461931]
[1761684130331,1.960704,3982.6,3981.6,0.02461931]
[1761684130636,2.51135308,3982.0,3981.6,0.46341931]
[1761684131036,2.51137434,3981.9,3981.6,0.46341931]
[1761684131253,2.51137434,3981.9,3981.6,0.02461931]
[1761684131577,2.51130052,3982.1,3981.6,0.02461931]
[1761684131693,2.51146565,3981.8,3981.6,0.02461931]
[1761684131894,2.51149006,3981.7,3981.6,0.02461931]
[1761684132728,4.47219406,3981.7,3981.6,0.02461931]
[1761684133041,1.5552,3981.7,3981.6,0.02461931]
[1761684133197,4.06669006,3981.7,3981.6,0.02461931]
[1761684135810,4.47219406,3981.7,3981.6,0.02461931]
[1761684136009,4.47219406,3981.7,3981.2,0.002]
[1761684136010,2.91724639,3981.3,3981.2,0.002]
[1761684137033,2.51199477,3980.9,3980.8,0.002]
[1761684137203,0.405504,3981.3,3980.8,0.002]
[1761684137404,2.51199477,3980.9,3980.8,0.002]
[1761684139138,0.1593,3981.9,3980.8,0.4408]
[1761684139434,2.6569164,3983.9,3980.8,0.4408]
[1761684139435,0.1248,3981.6,3981.2,0.2138]
[1761684139657,0.1248,3981.6,3981.3,0.4388]
[1761684139815,0.382,3982.9,3981.3,0.4388]
[1761684139816,0.1248,3982.0,3981.9,2.51136392]
[1761684140019,0.001,3983.6,3982.0,0.1885]
[1761684140247,0.1248,3982.3,3982.0,0.6273]
[1761684140403,2.51081769,3982.8,3982.0,0.6273]
[1761684140604,0.1248,3982.1,3982.0,0.1885]
[1761684141038,0.1248,3982.1,3982.0,3.22092777]
[1761684141344,0.1248,3982.3,3982.0,1.14842692]
[1761684141513,0.1248,3982.3,3982.1,0.4388]
[1761684142524,0.1248,3982.3,3982.2,0.4388]
[1761684142709,2.51101366,3982.5,3982.0,0.1885]
[1761684143215,2.51087037,3982.7,3982.0,0.1885]
[1761684143216,2.51106911,3982.4,3982.0,0.1885]
[1761684143560,3.01545843,3983.2,3982.0,0.1885]
[1761684143561,0.1009,3984.0,3982.1,2.9499894]
[1761684143708,0.1009,3984.0,3982.2,0.31384894]
[1761684143709,0.1009,3983.6,3982.2,0.31384894]
[1761684144048,0.1009,3983.6,3982.1,0.4388]
[1761684144049,2.91586033,3983.5,3982.1,0.4388]
[1761684144207,2.51065247,3983.1,3982.1,0.4388]
[1761684144407,2.439,3983.5,3982.1,0.4388]
[1761684144408,2.5389,3983.5,3982.1,0.4388]
[1761684144609,2.91614571,3983.1,3982.1,0.4388]
[1761684144818,2.5389,3983.5,3982.1,0.4388]
[1761684144819,2.439,3983.5,3982.1,0.4388]
[1761684145032,1.960704,3983.4,3982.1,0.4388]
[1761684145243,0.405504,3983.4,3982.3,2.51110846]
[1761684145418,0.405504,3983.5,3982.3,3.07607901]
[1761684145624,0.405504,3983.5,3982.4,0.4388]
[1761684145823,0.406504,3983.6,3982.4,2.94982358]
[1761684146020,0.406504,3983.6,3982.1,2.51122903]
[1761684146021,0.001,3983.6,3982.1,0.4388]
[1761684146226,2.51035521,3983.5,3982.1,0.4388]
[1761684146534,0.405504,3983.4,3982.1,0.74543]
[1761684146761,0.001,3983.6,3982.1,0.74543]
[1761684146762,1.960704,3983.5,3982.1,3.25660646]
[1761684147064,4.47110245,3983.5,3982.2,0.4388]
[1761684147642,1.960704,3983.5,3982.2,0.4388]
[1761684147965,1.960704,3983.5,3982.2,2.94997456]
[1761684148142,4.47106031,3983.5,3982.2,0.4388]
[1761684148342,4.47106031,3983.5,3982.3,0.4388]
[1761684148580,0.001,3983.6,3982.3,0.4388]
[1761684148739,2.438,3983.5,3982.7,2.51084232]
[1761684149249,0.001,3983.6,3983.4,0.2138]
[1761684149652,0.001,3983.6,3983.5,0.4388]
[1761684149955,0.001,3983.6,3982.4,2.51099641]
[1761684149956,0.405504,3982.8,3981.2,0.2138]
[1761684150272,0.405504,3983.2,3981.3,0.4388]
[1761684150440,0.2453,3983.5,3981.4,2.5116793]
[1761684150441,0.405504,3982.8,3981.4,2.5116793]
[1761684150643,1.5552,3982.7,3981.5,0.31642793]
[1761684150838,2.438,3982.7,3981.5,0.31642793]
[1761684151064,2.438,3982.7,3981.6,0.4388]
[1761684152553,0.1248,3981.7,3981.6,0.4388]
[1761684152973,0.1248,3981.7,3981.6,2.95035314]
[1761684153176,0.1248,3981.7,3981.6,3.49655366]
[1761684153682,0.405504,3982.4,3981.6,0.4388]
[1761684153838,0.405504,3982.2,3981.2,0.2138]
[1761684154038,1.960704,3982.2,3981.2,0.6526]
[1761684154259,2.842504,3982.4,3981.2,0.6526]
[1761684154774,0.405504,3982.2,3981.2,0.6526]
[1761684154989,2.51129208,3982.1,3981.2,0.6526]
[1761684155278,0.405504,3982.3,3981.3,0.4388]
[1761684155439,0.405504,3982.8,3981.3,0.4388]
[1761684155639,2.75244114,3982.9,3981.3,0.75543925]
[1761684155640,0.1427,3982.9,3981.3,0.75543925]
[1761684155839,0.1427,3982.9,3981.4,0.4388]
[1761684156041,0.405504,3982.8,3981.4,0.4388]
[1761684156441,0.405504,3982.8,3981.5,2.51161622]
[1761684156681,0.001,3983.0,3981.9,2.51134693]
[1761684156854,0.001,3983.0,3982.0,0.4388]
[1761684157246,0.001,3983.0,3982.1,0.2138]
[1761684157450,0.001,3983.0,3981.6,0.02261931]
[1761684157451,14.91850946,3982.4,3981.6,0.02261931]
[1761684157774,2.363704,3982.3,3981.6,0.02261931]
[1761684157941,6.91192506,3981.7,3981.6,0.02261931]
[1761684158259,6.90919406,3981.7,3981.6,0.02261931]
[1761684158447,21.24352006,3981.7,3981.6,0.02261931]
[1761684158812,14.57409206,3981.7,3981.6,0.02261931]
[1761684158948,14.72692484,3981.7,3981.6,0.02261931]
[1761684159275,15.07454484,3981.7,3981.6,0.02261931]
[1761684159450,11.82221706,3981.7,3981.6,0.02261931]
[1761684160078,4.73249406,3981.7,3981.6,0.02261931]
[1761684160394,2.436,3982.2,3981.6,0.02261931]
[1761684160541,4.94723043,3982.2,3981.6,0.02261931]
[1761684160742,2.436,3982.2,3981.6,0.02261931]
[1761684161176,2.51130085,3982.0,3981.6,0.02261931]
[1761684161476,0.405504,3981.8,3981.6,0.02261931]
[1761684161693,5.82965806,3981.7,3981.6,0.02261931]
[1761684161896,3.004404,3981.7,3981.6,0.02261931]
[1761684162464,0.568404,3981.7,3981.6,0.02261931]
[1761684162660,3.004404,3981.7,3981.6,0.02261931]
[1761684162897,0.568404,3981.7,3981.6,0.02261931]
[1761684163203,3.004404,3981.7,3981.6,0.02261931]
[1761684163509,5.51589406,3981.7,3981.6,0.02261931]
[1761684163862,3.004404,3981.7,3981.6,0.02261931]
[1761684164565,5.51589406,3981.7,3981.6,0.02261931]
[1761684164766,3.004404,3981.7,3981.6,0.02261931]
[1761684164998,5.51589406,3981.7,3981.6,0.02261931]
[1761684165298,5.20939006,3981.7,3981.6,0.02261931]
[1761684165600,0.1427,3982.3,3981.6,0.02261931]
[1761684165601,8.706587,3982.2,3981.6,0.02261931]
[1761684165801,0.1427,3982.3,3981.6,0.02261931]
[1761684166095,14.91850946,3982.7,3981.6,0.46491931]
[1761684166096,0.1422,3982.6,3981.6,0.46491931]
[1761684167195,2.5782,3982.6,3981.6,0.46491931]
[1761684167872,0.001,3983.0,3982.5,0.2184]
[1761684168375,0.001,3983.0,3982.6,0.4423]
[1761684169072,0.001,3983.0,3982.6,2.95319508]
[1761684169297,0.001,3983.0,3982.5,0.2184]
[1761684169298,0.001,3983.0,3982.5,2.72938556]
[1761684169474,0.001,3983.0,3982.9,2.51073338]
[1761684169670,0.001,3983.0,3982.9,3.0128883]
[1761684169975,0.001,3983.0,3982.9,3.4551883]
[1761684170212,0.001,3983.0,3982.9,5.0103883]
[1761684171210,0.001,3983.0,3982.9,5.1351883]
[1761684172073,0.001,3983.0,3982.9,2.95303338]
[1761684172421,0.001,3983.0,3982.9,6.94223338]
[1761684173311,0.001,3983.0,3982.9,4.50823338]
[1761684173490,0.001,3983.0,3982.9,6.94223338]
[1761684175626,1e-08,3983.6,3983.5,2.72875521]
[1761684175812,1e-08,3983.6,3983.5,4.28395521]
[1761684176120,1e-08,3983.6,3983.5,7.15925521]
[1761684176635,1e-08,3983.6,3983.5,4.72625521]
[1761684176831,1e-08,3983.6,3983.5,7.15925521]
[1761684177130,1e-08,3983.6,3983.5,8.12622449]
[1761684180339,1e-08,3983.6,3983.5,3.17105521]
[1761684180504,1e-08,3983.6,3983.5,5.16075521]
[1761684181034,1e-08,3983.6,3983.5,2.72875521]
[1761684181245,1e-08,3983.6,3982.5,2.72934316]
[1761684181430,1e-08,3983.6,3982.6,2.432]
[1761684181734,1e-08,3983.6,3982.9,2.51073338]
[1761684182034,1e-08,3983.6,3983.5,2.51035521]
[1761684182239,1e-08,3983.6,3983.5,4.94235521]
[1761684182444,1e-08,3983.6,3983.5,5.38465521]
[1761684182745,1e-08,3983.6,3983.5,6.93985521]
[1761684182900,1e-08,3983.6,3983.5,7.88488422]
[1761684183299,0.1418,3986.0,3983.5,7.88488422]
[1761684183300,1e-08,3984.4,3984.3,2.50985116]
[1761684183520,0.1614,3986.5,3985.6,2.50898719]
[1761684183712,0.1614,3986.5,3985.8,2.50889683]
[1761684183939,0.406504,3987.1,3985.9,2.53392646]
[1761684183940,0.001,3987.1,3985.9,2.53392646]
[1761684184137,0.001,3987.1,3986.2,2.50863142]
[1761684184338,0.001,3987.1,3985.7,2.431]
[1761684184637,1.5552,3986.9,3985.7,2.431]
[1761684185134,0.2598,3986.8,3985.7,2.431]
[1761684185339,0.1425,3985.8,3985.2,2.431]
[1761684185540,0.1425,3985.8,3985.2,4.9402779]
[1761684185704,0.1425,3985.8,3985.3,2.50920895]
[1761684185902,0.1425,3985.8,3985.2,2.431]
[1761684186108,0.1514,3986.8,3985.3,0.4423]
[1761684186538,0.1514,3986.8,3985.4,2.50915842]
[1761684186704,0.1514,3986.8,3985.7,2.50895743]
[1761684186905,0.1626,3987.2,3985.8,2.43]
[1761684186906,0.1509,3986.9,3985.8,2.43]
[1761684187441,0.1509,3986.9,3986.3,2.50853164]
[1761684187643,0.1509,3986.9,3986.4,2.43]
[1761684187969,0.1005,3987.5,3986.4,2.43]
[1761684187970,0.001,3987.5,3986.5,2.50845375]
[1761684188144,0.001,3987.5,3986.4,4.93851281]
[1761684188444,0.1,3987.5,3986.6,2.50834914]
[1761684188618,0.1,3987.5,3986.5,2.50846193]
[1761684188818,0.1,3987.5,3986.4,2.43]
[1761684189021,0.001,3987.5,3987.0,2.50815149]
[1761684189347,0.001,3987.5,3987.4,2.50789988]
[1761684189529,0.001,3987.5,3987.4,4.28859988]
[1761684189728,0.001,3987.5,3987.4,4.75229988]
[1761684190859,0.001,3987.5,3987.4,4.2097]
[1761684191042,0.001,3987.5,3987.4,5.16239988]
[1761684191245,0.001,3987.5,3987.4,4.93689988]
[1761684191412,0.001,3987.5,3987.4,7.72249906]
[1761684192172,0.001,3987.9,3987.8,4.06284832]
[1761684192371,0.001,3987.9,3987.8,6.49184832]
[1761684192544,0.001,3987.9,3987.8,7.08034832]
[1761684193379,0.001,3987.9,3987.8,2.1437]
[1761684193576,0.001,3987.9,3987.8,4.93564832]
[1761684193745,0.001,3987.9,3987.4,0.4637]
[1761684194077,0.001,3987.9,3985.2,2.77262692]
[1761684194078,0.001,3987.9,3987.5,0.4637]
[1761684194372,0.001,3987.9,3987.8,2.50764832]
[1761684194673,0.001,3987.9,3987.8,2.428]
[1761684194875,0.001,3987.9,3987.3,2.50791805]
[1761684195176,0.001,3987.9,3987.6,2.50776739]
[1761684195375,0.001,3987.9,3987.5,2.50782322]
[1761684195538,0.001,3987.9,3986.7,0.4637]
[1761684195539,0.1,3987.9,3986.7,0.2221]
[1761684195740,0.1,3987.9,3986.8,2.427]
[1761684195944,0.1,3987.9,3986.9,2.5082144]
[1761684196152,0.1,3987.9,3986.9,2.50816139]
[1761684196378,0.1,3987.9,3987.1,2.50808273]
[1761684196766,0.1,3987.9,3986.8,2.427]
[1761684196969,0.1,3987.9,3987.1,2.50808669]
[1761684197578,0.1,3987.9,3987.0,2.50814927]
[1761684197773,0.1,3987.9,3987.1,2.50808279]
[1761684198355,0.1,3987.9,3986.8,2.427]
[1761684198556,0.1,3987.9,3986.9,2.50816625]
[1761684198853,0.1,3987.9,3987.0,2.427]
[1761684199055,0.1,3987.9,3987.0,4.93509032]
[1761684199257,0.1,3987.9,3987.0,2.427]
[1761684199579,0.001,3987.9,3987.8,4.06284832]
[1761684199751,0.001,3987.9,3987.8,6.48884832]
[1761684200100,0.001,3989.3,3987.8,6.48884832]
[1761684200101,0.001,3989.3,3988.8,4.06221965]
[1761684200244,0.001,3989.3,3988.8,6.69941965]
[1761684200590,0.001,3989.3,3988.8,7.16311965]
[1761684200949,0.001,3989.3,3988.8,8.02071523]
[1761684201351,0.001,3989.3,3988.8,22.52115849]
[1761684201586,0.001,3989.3,3988.8,8.02071523]
[1761684203080,0.001,3989.3,3988.8,7.16311965]
[1761684203492,0.001,3989.3,3988.8,7.28791965]
[1761684206068,0.001,3989.3,3988.8,6.82421965]
[1761684206471,0.001,3989.3,3988.8,4.93101965]
[1761684206472,0.1524,3989.2,3988.8,4.93101965]
[1761684206788,0.1524,3989.2,3988.8,2.424]
[1761684207691,0.1524,3989.2,3988.8,2.41549665]
[1761684208077,0.1524,3989.2,3988.8,4.9225163]
[1761684208277,0.1524,3989.2,3988.8,2.41549665]
[1761684208692,0.1524,3989.2,3988.8,4.9225163]
[1761684208889,0.1524,3989.2,3988.8,2.41549665]
[1761684209422,0.1524,3989.2,3986.8,2.50822155]
[1761684209423,0.1,3988.9,3987.8,2.50762115]
[1761684209691,0.1,3988.9,3987.9,2.424]
[1761684210053,0.405504,3988.7,3987.9,2.424]
[1761684210283,2.50719419,3988.6,3987.9,2.424]
[1761684210464,2.60619419,3988.6,3987.9,2.424]
[1761684210681,2.50721969,3988.5,3987.9,2.424]
[1761684210883,2.60621969,3988.5,3987.9,2.424]
[1761684211193,2.60621969,3988.5,3986.8,4.52714424]
[1761684211194,0.099,3988.4,3986.0,2.50873269]
[1761684211399,0.099,3988.4,3984.0,0.002]
[1761684211400,0.405504,3988.3,3987.1,2.50808777]
[1761684211569,0.405504,3988.3,3987.2,2.423]
[1761684211759,2.5075966,3987.9,3987.2,2.423]
[1761684212092,2.6069139,3988.2,3987.2,2.423]
[1761684212093,0.405504,3988.1,3987.2,2.423]
[1761684212292,2.50752256,3988.0,3987.2,2.423]
[1761684212493,2.60702256,3988.0,3987.2,2.423]
[1761684212679,0.0995,3987.9,3987.2,2.423]
[1761684212992,0.405504,3987.8,3987.2,2.423]
[1761684213191,2.50783509,3987.6,3987.2,2.423]
[1761684213668,0.0995,3987.5,3986.8,2.50825506]
[1761684214396,0.0995,3987.5,3986.7,2.423]
[1761684214703,0.0995,3987.5,3986.7,4.93129462]
[1761684215070,0.1629,3986.8,3986.7,2.423]
[1761684215396,0.0995,3987.5,3986.8,2.50826285]
[1761684216180,0.0995,3987.5,3986.7,4.93133481]
[1761684216498,0.1248,3986.8,3986.7,2.423]
[1761684219503,0.1532,3988.8,3986.7,0.2423]
[1761684219711,0.254,3988.8,3987.1,0.222]
[1761684220016,0.254,3988.8,3987.2,2.422]
[1761684220017,0.1013,3988.7,3987.2,2.422]
[1761684220215,0.1013,3988.7,3986.5,2.5084265]
[1761684220216,0.153,3987.3,3986.5,2.5084265]
[1761684220374,0.153,3987.3,3986.6,2.422]
[1761684221004,0.153,3987.3,3986.7,2.50834023]
[1761684221581,0.153,3987.3,3986.6,2.424]
[1761684221800,0.153,3987.3,3986.6,4.93238265]
[1761684222204,0.153,3987.3,3986.6,2.424]
[1761684222403,0.153,3987.3,3986.7,2.5082988]
[1761684222608,0.153,3987.3,3986.6,4.93237001]
[1761684223308,0.153,3987.3,3986.6,2.424]
[1761684223510,0.153,3987.3,3986.7,2.50832358]
[1761684223706,0.153,3987.3,3986.6,2.424]
[1761684224237,0.153,3987.3,3986.6,4.93239819]
[1761684224410,0.153,3987.3,3986.7,2.50833597]
[1761684224608,0.153,3987.3,3986.7,2.50834023]
[1761684225015,0.153,3987.3,3986.6,4.93238604]
[1761684225597,0.153,3987.3,3986.7,2.50833593]
[1761684226098,0.153,3987.3,3986.6,2.424]
[1761684226431,0.1018,3987.7,3986.6,2.424]
[1761684226733,21.02464326,3988.8,3986.6,2.424]
[1761684226734,0.1542,3988.8,3987.3,2.50796278]
[1761684226945,0.1028,3988.7,3986.7,0.4498]
[1761684227117,2.50740715,3988.2,3987.2,2.50798007]
[1761684227306,0.1542,3988.8,3987.3,2.371]
[1761684227307,0.1028,3988.3,3987.3,2.371]
[1761684227636,2.50719797,3988.6,3987.3,3.55951387]
[1761684227934,0.1542,3988.8,3988.1,2.50745492]
[1761684228233,0.1542,3988.8,3988.1,2.42]
[1761684228234,2.50709276,3988.7,3988.1,2.42]
[1761684228434,2.50709276,3988.7,3987.8,2.50764646]